[Event "Swietokrzyskie IM Chess-ch 2022"]
[Site "Zagnansk"]
[Date "2022.04.30"]
[Round "1.1"]
[White "Nowak, FM ?ukasz"]
[Black "Sieciechowicz, IM Marcin"]
[Result "*"]
[WhiteElo "2376"]
[BlackElo "2388"]
[Annotator "TA"]
[PlyCount "32"]
[EventDate "2022.04.29"]
[EventCountry "POL"]
[SourceTitle "playchess.com"]
[Source "ChessBase"]
[SourceQuality "1"]
[TimeControl "40/5400+30:1800+30"]

{[%evp 10,11,44,43]} 1. d4 {[%emt 0:00:05]} Nf6 {[%emt 0:00:10]} 2. c4 {[%emt 0:00:09]} g6 {[%emt 0:00:06]} 3. Nc3 {[%emt 0:00:08]} Bg7 {[%emt 0:00:11]} 4. e4 {[%emt 0:00:11]} d6 {[%emt 0:00:06]} 5. Be2 {[%emt 0:00:12]} O-O {[%emt 0:00:07]} 6. Be3 {[%emt 0:00:09] [#]} {Predecessor:} e5 $146 {E73: King's Indian: Averbakh Variation without 6...c5.} 7. d5 a5 8. g4 Na6 9. g5 Nd7 10. h4 Ndc5 11. Nf3 Bg4 12. Nh2 Bd7 13. Ng4 c6 14. Qd2 Bxg4 15. Bxg4 Nb4 16. Bxc5 dxc5 {1-0 (42) Sarana,A (2685)-Caruana,F (2792) Chess.com INT 2022} *

[Event "Swietokrzyskie IM Chess-ch 2022"]
[Site "Zagnansk"]
[Date "2022.04.30"]
[Round "1.2"]
[White "Kotyk, Michael"]
[Black "Prokofiev, Valentyn"]
[Result "1-0"]
[ECO "A56"]
[WhiteElo "2170"]
[BlackElo "2287"]
[Annotator "TA"]
[PlyCount "79"]
[EventDate "2022.04.29"]
[EventCountry "POL"]
[SourceTitle "playchess.com"]
[Source "ChessBase"]
[SourceQuality "1"]
[TimeControl "40/5400+30:1800+30"]

{[%evp 20,79,9,0,0,0,0,-14,0,5,39,11,16,16,15,12,9,11,21,21,21,21,39,46,35,38,61,48,57,50,75,32,107,78,85,31,91,72,108,108,125,125,125,125,125,55,140,55,58,0,87,85,85,14,14,0,2,0,2,2,2,0]} 1. d4 {[%emt 0:00:02]} Nf6 {[%emt 0:00:04]} 2. c4 {[%emt 0:00:06]} c5 {[%emt 0:00:02]} 3. d5 {[%emt 0:00:06]} g6 {[%emt 0:00:04]} 4. Nc3 {[%emt 0:00:18]} Bg7 {[%emt 0:00:04]} 5. e4 {[%emt 0:00:47]} d6 {[%emt 0:00:04]} 6. Nf3 {[%emt 0:00:24]} O-O {[%emt 0:00:05]} 7. h3 {[%emt 0:00:08]} e6 {[%emt 0:00:04]} 8. Be2 {[%emt 0:00:05]} Re8 {[%emt 0:00:09]} 9. Be3 {[%emt 0:01:07]} exd5 {[%emt 0:00:11]} 10. exd5 {[%emt 0:00:04]} Bf5 {[%emt 0:00:10]} 11. O-O {[%emt 0:03:46]} Ne4 {[%emt 0:02:19] E91: King's Indian: Classical: 6 Be2, unusual replies including 6...c5 and 6...Bg4.} 12. Nxe4 {[%emt 0:04:56]} Bxe4 {[%emt 0:00:07]} 13. Bd3 {[%emt 0:12:27] [#]} Bxd3 $146 {[%emt 0:07:45]} ({Predecessor:} 13... Bxf3 14. Qxf3 Nd7 15. Rab1 Ne5 16. Qd1 Qh4 17. b3 f5 18. Bc1 Re7 19. Bb2 Rae8 20. Bxe5 Bxe5 {½-½ (27) Fazulyanov,S (2297)-Nesterov,Y (2497) Moscow 2006}) 14. Qxd3 {[%emt 0:01:36]} Qc7 {[%emt 0:00:57]} 15. Rab1 {[%emt 0:01:49]} Nd7 {[%emt 0:02:41]} 16. Rfe1 {[%emt 0:07:42]} Ne5 {[%emt 0:11:05]} 17. Nxe5 {[%emt 0:00:46]} Rxe5 {[%emt 0:00:11]} 18. b3 {[%emt 0:10:17]} Qa5 {[%emt 0:17:17]} 19. Qd2 {[%emt 0:01:27]} Qxd2 {[%emt 0:00:33]} 20. Bxd2 {[%emt 0:00:07]} Rxe1+ {[%emt 0:00:03]} 21. Rxe1 $11 {[%emt 0:00:54][%mdl 4096] Endgame KRB-KRB} Be5 {[%emt 0:00:06]} 22. Kf1 {[%emt 0:08:52]} Rb8 {[%emt 0:06:29]} 23. Ke2 {[%emt 0:06:51]} Kg7 {[%emt 0:14:18]} 24. Kd3 {[%emt 0:00:58]} a6 {[%emt 0:07:07]} 25. g4 {[%emt 0:08:47]} h6 {[%emt 0:18:00]} (25... b5 $14) 26. h4 {[%emt 0:11:56]} Bd4 {[%emt 0:01:33]} 27. f4 {[%emt 0:08:00]} (27. Re2 $16) 27... Bf2 {[%emt 0:02:20]} (27... b5 $14) 28. Rh1 $16 {[%emt 0:00:33]} Re8 {[%emt 0:01:32]} 29. h5 {[%emt 0:00:28]} Bd4 {[%emt 0:01:03]} 30. hxg6 {[%emt 0:06:41]} fxg6 {[%emt 0:00:22]} 31. f5 {[%emt 0:00:07]} g5 {[%emt 0:01:13]} 32. b4 {[%emt 0:02:15]} ({White should play} 32. Re1 $16 Rxe1 33. Bxe1) 32... b6 {[%emt 0:01:01]} (32... b5 $1 $14) 33. Rb1 {[%emt 0:00:23]} (33. a4 $16) 33... h5 {[%emt 0:03:49]} 34. bxc5 {[%emt 0:02:03]} ({Of course not} 34. Bxg5 hxg4 35. bxc5 Bxc5 $11) ({White should try} 34. gxh5 $14 Kf6 35. h6) 34... Bxc5 {[%emt 0:00:04]} (34... bxc5 $11 {remains equal.} 35. gxh5 Kf6) 35. gxh5 {[%emt 0:00:15]} Kh6 {[%emt 0:00:47] [#]} 36. Rf1 {[%emt 0:00:56]} (36. Re1 $1 $16 {[%cal Re1e8]} Rxe1 37. Bxe1 Kxh5 38. a4) 36... Kxh5 $11 {[%emt 0:02:24] The position is equal.} 37. Rh1+ {[%emt 0:00:00]} Kg4 {[%emt 0:00:25]} 38. Rf1 {[%emt 0:00:47] f6 is the strong threat.} Rf8 {[%emt 0:02:19]} 39. f6 {[%emt 0:00:15] Strongly threatening f7.} Kh5 $1 {[%emt 0:00:40]} 40. Bc3 {[%emt 0:00:00][%mdl 32768] Weighted Error Value: White=0.18 (very precise) /Black=0.22 (precise) . Loss on time!?} 1-0

[Event "Swietokrzyskie IM Chess-ch 2022"]
[Site "Zagnansk"]
[Date "2022.04.30"]
[Round "1.3"]
[White "Chylewski, FM Patryk"]
[Black "Wikar, WFM Martyna"]
[Result "1/2-1/2"]
[ECO "E81"]
[WhiteElo "2281"]
[BlackElo "2197"]
[Annotator "TA"]
[PlyCount "51"]
[EventDate "2022.04.29"]
[EventCountry "POL"]
[SourceTitle "playchess.com"]
[Source "ChessBase"]
[SourceQuality "1"]
[TimeControl "40/5400+30:1800+30"]

{[%evp 12,51,35,33,29,8,0,3,18,8,9,-21,0,-42,-33,-25,-8,-39,-7,0,8,-18,0,0,0,-8,47,35,51,25,50,0,43,43,45,5,28,20,25,28,36,35]} 1. d4 {[%emt 0:00:03]} Nf6 {[%emt 0:00:07]} 2. c4 {[%emt 0:00:05]} g6 {[%emt 0:00:06]} 3. Nc3 {[%emt 0:00:05]} Bg7 {[%emt 0:00:07]} 4. e4 {[%emt 0:00:05]} d6 {[%emt 0:00:05]} 5. f3 {[%emt 0:00:21]} O-O {[%emt 0:00:08]} 6. Nge2 {[%emt 0:00:05]} c5 {[%emt 0:00:16]} 7. Be3 {[%emt 0:00:07]} Qa5 {[%emt 0:00:50] E81: King's Indian: Sämisch: 6th move deviations (including 6 Be3 c6).} 8. d5 {[%emt 0:03:39]} b5 {[%emt 0:00:50]} 9. cxb5 {[%emt 0:00:22]} a6 $1 {[%emt 0:00:04] The position is equal.} 10. b6 {[%emt 0:04:28]} Nbd7 {[%emt 0:04:19]} 11. Qd2 {[%emt 0:05:27]} Rb8 {[%emt 0:04:06]} (11... Nxb6 $5 {[%cal Rb6c4]} 12. Nf4 Nfd7 $11) 12. Nc1 {[%emt 0:03:03]} Ne5 {[%emt 0:12:32]} 13. Be2 {[%emt 0:04:10]} Qxb6 {[%emt 0:01:09]} 14. Rb1 {[%emt 0:00:34][%cal Ob2b4] [#]} a5 $146 {[%emt 0:09:31]} ({Predecessor:} 14... Qc7 15. O-O e6 16. Bg5 Bb7 17. f4 Ned7 18. Bf3 exd5 19. exd5 Rfe8 20. N1e2 Nb6 {½-½ (34) Horvath,M (2015)-Kiefhaber,V (2207) Germany 2013}) 15. O-O {[%emt 0:14:00]} Ba6 {[%emt 0:05:58]} 16. Kh1 {[%emt 0:10:41]} Nfd7 {[%emt 0:10:11]} 17. b3 {[%emt 0:10:14] Prevents Nc4. Threatens to win with f4.} Bxe2 {[%emt 0:07:36]} 18. N1xe2 {[%emt 0:01:44]} Qb4 {[%emt 0:02:11]} (18... Qa6 $11) 19. Rfc1 {[%emt 0:08:57]} Rfc8 {[%emt 0:02:18]} 20. h3 {[%emt 0:04:54] [#] aiming for f4.} Nf6 {[%emt 0:02:40]} 21. Na4 {[%emt 0:02:47]} ({Better is} 21. Bg5 $14) 21... Ned7 {[%emt 0:09:14]} 22. Qd1 {[%emt 0:06:15]} Qb5 {[%emt 0:04:28]} 23. Nf4 {[%emt 0:02:29]} Ne5 {[%emt 0:01:30]} 24. Nb2 {[%emt 0:02:12]} Qa6 {[%emt 0:01:59]} 25. Ne2 {[%emt 0:05:06]} Rb7 {[%emt 0:03:56]} 26. Kh2 {[%emt 0:02:54] Weighted Error Value: White=0.14 (very precise) /Black=0.13 (very precise)} 1/2-1/2

[Event "Swietokrzyskie IM Chess-ch 2022"]
[Site "Zagnansk"]
[Date "2022.04.30"]
[Round "1.4"]
[White "Malek, Jan"]
[Black "Krzywda, CM Andrzej"]
[Result "0-1"]
[ECO "B31"]
[WhiteElo "2316"]
[BlackElo "2152"]
[Annotator "TA"]
[PlyCount "120"]
[EventDate "2022.04.29"]
[EventCountry "POL"]
[SourceTitle "playchess.com"]
[Source "ChessBase"]
[SourceQuality "1"]
[TimeControl "40/5400+30:1800+30"]

{[%evp 18,120,12,14,31,29,37,20,27,0,10,5,14,-10,-15,-18,0,-31,0,-81,-105,-109,-108,-154,-175,-206,-193,-192,-210,-228,-224,-265,-232,-272,-257,-247,-229,-231,-148,-212,0,-271,-264,-250,-243,-221,0,-258,0,-238,0,-284,-246,-254,-226,-224,0,-259,-242,-265,-262,-283,-280,-390,-390,-477,-474,-564,-393,-554,-462,-577,-544,-605,-530,-522,-516,-688,-683,-670,-653,-740,-687,-741,-764,-745,-725,-911,-910,-1277,-1275,-1310,-1213,-1329,-1313,-1706,-1633,-1599,-1606,-1520,-1500,-2679,-1327,-2039,-1913]} 1. e4 {[%emt 0:00:04]} c5 {[%emt 0:00:05]} 2. Nf3 {[%emt 0:00:04]} Nc6 {[%emt 0:00:03]} 3. Bb5 {[%emt 0:00:07]} g6 {[%emt 0:00:18]} 4. O-O {[%emt 0:00:07]} Bg7 {[%emt 0:00:03]} 5. Re1 {[%emt 0:00:18]} Nf6 {[%emt 0:00:04][%cal Bg8f6,Bf6d5,Bd5c7,Bc7e6][%mdl 32]} 6. e5 {[%emt 0:00:06]} Nd5 {[%emt 0:00:05]} 7. Nc3 {[%emt 0:00:05]} Nc7 {[%emt 0:00:11]} 8. Bxc6 {[%emt 0:00:07]} dxc6 {[%emt 0:00:07]} 9. Ne4 {[%emt 0:00:03]} Ne6 {[%emt 0:00:29] 9...b6 injects fresh life into this line.} 10. d3 {[%emt 0:00:11]} h6 {[%emt 0:00:45] B31: Sicilian: 2...Nc6 3 Bb5 g6.} 11. a4 {[%emt 0:05:36]} b6 {[%emt 0:03:13]} 12. b3 {[%emt 0:00:09][%cal Oa4a5]} O-O {[%emt 0:01:57] [#] The position is equal.} 13. h4 $146 {[%emt 0:04:22]} ({Predecessor:} 13. a5 Rb8 14. h3 Rb7 15. Bb2 Rc7 16. axb6 axb6 17. Ra4 Kh7 18. Qc1 Rb7 19. Ng3 Qd7 20. Bc3 f5 21. exf6 {1-0 (21) Gonzalez Martinez,E (2149)-Nazarova,A (2108) ICCF email 2017}) 13... Nd4 {[%emt 0:02:39]} 14. Nxd4 {[%emt 0:05:45]} Qxd4 {[%emt 0:00:24]} 15. Ra2 {[%emt 0:23:25]} Qxe5 {[%emt 0:06:42]} 16. a5 {[%emt 0:00:12]} Qb8 {[%emt 0:15:15]} 17. Ng3 {[%emt 0:12:10]} Be6 {[%emt 0:08:21]} 18. Rxe6 {[%emt 0:03:11]} fxe6 $17 {[%emt 0:00:21]} 19. Ra4 {[%emt 0:00:04]} Bd4 {[%emt 0:07:56]} 20. Rxd4 {[%emt 0:03:16]} cxd4 {[%emt 0:00:18]} 21. Bxh6 {[%emt 0:01:24] [#]} Rf5 $1 {[%emt 0:11:54]} 22. Qg4 {[%emt 0:06:57] [#]} (22. Nxf5 exf5) 22... Kh7 {[%emt 0:03:34]} 23. Bd2 {[%emt 0:00:43] [#]} Qe5 {[%emt 0:10:10]} ({And not} 23... bxa5 24. Nxf5 exf5 25. Qxd4 $11) 24. Ne4 {[%emt 0:01:28]} Raf8 {[%emt 0:03:04]} 25. f3 {[%emt 0:14:15]} c5 {[%emt 0:04:51]} 26. Bg5 {[%emt 0:03:14]} R8f7 {[%emt 0:04:13]} 27. a6 {[%emt 0:05:47]} Kg8 {[%emt 0:02:14]} 28. Bd2 {[%emt 0:01:11]} (28. Bh6 $17 {might work better.}) 28... Kh7 $2 {[%emt 0:02:00]} (28... Kg7 $19 29. Ng3 R7f6) 29. Qh3 $2 {[%emt 0:03:53][%mdl 8192]} (29. Bg5 $1 $11 Rg7 30. Bd2) 29... Kg7 $19 {[%emt 0:04:18]} 30. Be1 {[%emt 0:00:01]} Qf4 {[%emt 0:01:49]} 31. Bd2 {[%emt 0:00:02] Prevents Qe3+.} Qe5 {[%emt 0:00:54]} 32. Be1 $1 {[%emt 0:00:05]} Qf4 {[%emt 0:03:41]} 33. Bd2 {[%emt 0:00:02] Prevents Qe3+.} Qe5 {[%emt 0:01:47]} ({Better is} 33... Qb8 $19 {Hoping for ...Rf8.} 34. Qg4 Qe5) 34. c4 $2 {[%emt 0:06:37][%mdl 8192]} (34. Be1 $1 $11 {and White stays safe.} Rf8 35. Bd2) 34... Rf8 {[%emt 0:00:30][%cal Ob6b5]} 35. Be1 {[%emt 0:01:30]} Qf4 {[%emt 0:00:38]} 36. Bd2 {[%emt 0:00:01] Inhibits Qe3+.} Qe5 {[%emt 0:00:33]} ({Black should try} 36... Qb8 $19 {aiming for ...b5.} 37. Bg5 R8f7) 37. Qg4 $2 {[%emt 0:01:48][%mdl 8192]} (37. Be1 $1 $11 {and White is okay.}) 37... Rh5 {[%emt 0:01:41][%cal Bf5h5,Bh5h8,Bh8f8][%mdl 32]} 38. Ng3 {[%emt 0:00:30]} Rhh8 {[%emt 0:00:51][%cal Of8f5]} 39. Kf2 {[%emt 0:00:22] [#]} Rf5 $1 {[%emt 0:00:46][%cal Bf8f5,Bf5h5,Bh5h8][%mdl 32]} 40. Nf1 {[%emt 0:00:00]} (40. Kg1 Qf6) 40... Rfh5 {[%emt 0:00:00]} 41. g3 {[%emt 0:20:57]} Qf5 {[%emt 0:16:36]} 42. Ke2 {[%emt 0:00:02]} Rf8 {[%emt 0:04:34]} 43. Nh2 {[%emt 0:03:42]} (43. Bg5 $142) 43... e5 {[%emt 0:02:57] Black is clearly winning.} 44. Nf1 {[%emt 0:01:24]} Rhh8 {[%emt 0:00:40] Strongly threatening ...Qxg4.} 45. Bg5 {[%emt 0:00:23]} Rf7 {[%emt 0:01:48] Threatens to win with ...Qxg4.} 46. Nd2 {[%emt 0:00:01]} Rhf8 {[%emt 0:00:34]} 47. Qe4 {[%emt 0:04:39]} Qxe4+ {[%emt 0:00:06]} 48. dxe4 {[%emt 0:00:06]} e6 {[%emt 0:01:17]} 49. g4 {[%emt 0:00:33]} Rb8 {[%emt 0:01:16]} 50. Kd3 {[%emt 0:03:14]} Kh7 {[%emt 0:00:30]} 51. Ke2 {[%emt 0:01:15]} b5 {[%emt 0:00:41][%cal Bb6b5,Bb5b4][%mdl 32]} 52. Kd3 {[%emt 0:00:02]} b4 {[%emt 0:02:00]} 53. Ke2 {[%emt 0:00:02]} Rb6 {[%emt 0:00:30]} 54. f4 {[%emt 0:00:02]} exf4 {[%emt 0:00:32][%cal Be5f4,Bf4f3][%mdl 32]} 55. Nf3 {[%emt 0:00:02]} Rxa6 {[%emt 0:00:16]} 56. Ne5 {[%emt 0:00:04]} f3+ {[%emt 0:01:04]} 57. Kf2 {[%emt 0:00:13]} Ra2+ {[%emt 0:00:05]} 58. Kf1 {[%emt 0:00:01]} Rc7 {[%emt 0:01:37]} 59. Bd8 {[%emt 0:00:27]} Rc8 {[%emt 0:00:29]} 60. Be7 {[%emt 0:00:02]} a5 {[%emt 0:01:29] Weighted Error Value: White=0.56/Black=0.51} 0-1

[Event "Swietokrzyskie IM Chess-ch 2022"]
[Site "Zagnansk"]
[Date "2022.05.01"]
[Round "2.1"]
[White "Sieciechowicz, IM Marcin"]
[Black "Vlachos, IM Anatole"]
[Result "1/2-1/2"]
[ECO "D20"]
[WhiteElo "2388"]
[BlackElo "2406"]
[Annotator "TA"]
[PlyCount "123"]
[EventDate "2022.04.29"]
[EventCountry "POL"]
[SourceTitle "playchess.com"]
[Source "ChessBase"]
[SourceQuality "1"]
[TimeControl "40/5400+30:1800+30"]

{[%evp 17,123,42,58,52,48,53,37,0,0,0,0,-3,-7,-16,-12,-21,-22,-10,-7,-36,6,-25,-21,-22,-14,-27,-27,-24,-21,-41,-30,-50,0,-14,0,0,0,17,41,0,0,0,0,0,0,0,0,0,0,0,0,-43,0,0,0,0,0,0,38,0,0,0,0,0,0,0,0,0,0,0,0,0,0,0,0,-26,0,0,0,-4,-4,-4,-4,-4,-4,-8,0,0,0,0,0,0,0,0,0,0,0,0,0,0,0,0,0,0,0,0,0,0]} 1. d4 {[%emt 0:00:08]} d5 {[%emt 0:00:05]} 2. c4 {[%emt 0:00:21]} dxc4 {[%emt 0:00:39]} 3. e4 {[%emt 0:00:35][%cal Be2e4,Be4e5][%mdl 32]} Nf6 {[%emt 0:00:13]} 4. e5 {[%emt 0:00:34]} Nd5 {[%emt 0:00:07]} 5. Bxc4 {[%emt 0:00:11]} Nb6 {[%emt 0:00:14]} 6. Bd3 {[%emt 0:00:30]} Nc6 {[%emt 0:00:23]} 7. Ne2 {[%emt 0:00:21]} Bg4 {[%emt 0:00:56]} 8. f3 {[%emt 0:01:06]} Be6 {[%emt 0:00:06] The old main line.} 9. Nbc3 {[%emt 0:03:25][%cal Bb1c3,Bc3e4,Be4c5][%mdl 32]} Qd7 {[%emt 0:01:26] 9...Bc4 is vanishing.} (9... Nxd4 $2 10. Nxd4 Qd7 11. Nxe6 Qxe6 12. Qe2 $18) 10. Ne4 $1 {[%emt 0:06:13] D20: Queen's Gambit Accepted: 3 e3 and 3 e4.} Bd5 {[%emt 0:00:18]} (10... Nxd4 $2 11. Nxd4 c6 12. Be3 $18) 11. Nc5 {[%emt 0:02:49][%csl LRb7,LRd7]} Qc8 {[%emt 0:00:11]} 12. O-O {[%emt 0:05:41] White is slightly better.} e6 {[%emt 0:00:58][%cal Oc6d4]} 13. Ne4 {[%emt 0:07:17]} Qd7 {[%emt 0:02:57]} 14. Bg5 {[%emt 0:03:49] [#]} Be7 $146 {[%emt 0:11:06] [#] Strongly threatening ...Bxe4.} ({Predecessor:} 14... h6 15. Bh4 Be7 16. Bxe7 Qxe7 17. Qc1 O-O-O 18. a4 Bxe4 19. Bxe4 Nxd4 20. Nxd4 Rxd4 21. a5 Rc4 22. Qe3 Nd7 {0-1 (38) Milov,V (2590)-Zilberman,Y (2460) Tel Aviv 1994}) 15. Bxe7 {[%emt 0:01:30]} Qxe7 {[%emt 0:00:15]} 16. N4c3 {[%emt 0:01:20]} O-O-O {[%emt 0:02:32][%cal Oc6e5]} 17. b3 {[%emt 0:03:25]} f6 {[%emt 0:07:49]} 18. exf6 {[%emt 0:05:28]} gxf6 {[%emt 0:00:28]} 19. Qe1 {[%emt 0:04:52]} (19. Bb5 {keeps more tension.} Rhg8 20. Qd2 Qd6 21. Qh6) 19... Rhg8 {[%emt 0:05:00]} 20. Qf2 {[%emt 0:03:08]} f5 {[%emt 0:03:26]} 21. Nf4 {[%emt 0:12:17]} Qf6 {[%emt 0:15:45]} 22. Nce2 {[%emt 0:02:13]} e5 {[%emt 0:02:09]} 23. Nxd5 {[%emt 0:01:46]} Nxd5 {[%emt 0:01:25]} 24. dxe5 {[%emt 0:03:33]} Qxe5 {[%emt 0:05:19]} ({Black should try} 24... Nxe5 $15 25. Bc4 Nxc4 26. bxc4 Nb6) 25. f4 {[%emt 0:04:27]} Qe6 {[%emt 0:00:08]} 26. Bc4 {[%emt 0:00:55]} b5 {[%emt 0:06:15]} 27. Bxd5 {[%emt 0:01:50]} Rxd5 {[%emt 0:03:00]} 28. Rad1 {[%emt 0:02:19] Prevents Rd2.} (28. Nc3 {seems wilder.} Rd3 29. Rae1 Qd7 30. Nxb5 Qd5 31. Na3) 28... Rgd8 {[%emt 0:01:54]} 29. Rxd5 {[%emt 0:01:21]} Qxd5 {[%emt 0:00:36]} 30. h3 {[%emt 0:08:03]} Kb7 {[%emt 0:02:50]} 31. Kh2 {[%emt 0:00:24]} a6 {[%emt 0:01:41]} 32. Rc1 {[%emt 0:02:06]} Rd6 33. Rc5 {[%emt 0:02:11]} Qd3 {[%emt 0:01:29]} 34. Rc3 {[%emt 0:01:39]} Qd5 {[%emt 0:07:34]} (34... Qd2 $5 {[%cal Rd6e6]} 35. Qf3 Kb6 $15) 35. Ng3 {[%emt 0:01:02]} Nd4 {[%emt 0:00:46] Prevents Qc2.} 36. b4 {[%emt 0:01:22]} Nc6 {[%emt 0:07:07]} 37. a3 {[%emt 0:01:02]} Qd4 {[%emt 0:02:51]} 38. Qxd4 {[%emt 0:01:56]} (38. Qf3 {feels hotter.} Qd5 39. Qe3 Nd8 40. Rc5) 38... Rxd4 {[%emt 0:01:27]} 39. Nxf5 {[%emt 0:00:13]} Rxf4 $14 {[%emt 0:00:05][%mdl 4096] Endgame KRN-KRN} 40. g4 {[%emt 0:00:00][%cal Bg2g4,Bg4g5][%mdl 32]} a5 {[%emt 0:00:00]} 41. bxa5 {[%emt 0:17:38]} Nxa5 {[%emt 0:19:03]} 42. Ne3 {[%emt 0:05:00]} Nc4 {[%emt 0:05:57]} 43. Kg3 {[%emt 0:01:41] Inhibits Rf3+.} Nxe3 {[%emt 0:00:07]} 44. Rxe3 $11 {[%emt 0:00:06] KR-KR} Rf7 {[%emt 0:00:25]} 45. g5 {[%emt 0:01:44]} c5 {[%emt 0:00:58]} 46. h4 {[%emt 0:01:15]} Kc6 {[%emt 0:01:17]} 47. h5 {[%emt 0:01:05] The position is equal.} Kd5 {[%emt 0:01:27]} 48. Kg4 {[%emt 0:01:23]} c4 {[%emt 0:00:13]} 49. g6 {[%emt 0:04:42]} hxg6 {[%emt 0:00:03]} 50. hxg6 {[%emt 0:00:02]} Rc7 {[%emt 0:00:50]} 51. Kf5 {[%emt 0:01:54]} Kd4 {[%emt 0:04:17]} (51... c3 $5 52. g7 Rxg7 53. Rxc3 Ra7 $11) 52. Rg3 {[%emt 0:01:13]} Rc8 {[%emt 0:00:40] [#] White must now prevent ...c3.} 53. g7 {[%emt 0:01:05]} Rg8 {[%emt 0:00:07]} 54. Kf6 {[%emt 0:01:15]} c3 {[%emt 0:00:06]} 55. Kf7 {[%emt 0:00:19]} c2 {[%emt 0:01:12][%cal Og8g7] ...Rxg7+! is the strong threat.} 56. Rg1 {[%emt 0:00:35]} Rc8 {[%emt 0:01:28]} 57. g8=Q {[%emt 0:00:15]} Rxg8 {[%emt 0:00:05]} 58. Kxg8 {[%emt 0:00:04]} Kc3 {[%emt 0:00:06]} 59. Kf7 {[%emt 0:00:23]} Kb2 {[%emt 0:00:13]} 60. Ke6 {[%emt 0:00:23]} Kxa3 {[%emt 0:00:54] aiming for ...b4.} 61. Kd5 {[%emt 0:00:18]} Kb2 {[%emt 0:00:38]} 62. Ke5 {Weighted Error Value: White=0.06 (flawless) /Black=0.04 (flawless)} 1/2-1/2

[Event "Swietokrzyskie IM Chess-ch 2022"]
[Site "Zagnansk"]
[Date "2022.05.01"]
[Round "2.2"]
[White "Krzywda, CM Andrzej"]
[Black "Manik, GM Mikulas"]
[Result "1/2-1/2"]
[ECO "B24"]
[WhiteElo "2152"]
[BlackElo "2367"]
[Annotator "TA"]
[PlyCount "62"]
[EventDate "2022.04.29"]
[EventCountry "POL"]
[SourceTitle "playchess.com"]
[Source "ChessBase"]
[SourceQuality "1"]
[TimeControl "40/5400+30:1800+30"]

{[%evp 9,62,0,13,-14,-16,-18,0,-7,-8,-9,0,-9,51,44,50,45,48,0,0,0,0,0,0,-3,137,-8,72,18,137,138,133,144,122,38,60,28,85,0,0,0,12,21,38,30,62,-120,42,-310,158,122,185,143,216,0,246]} 1. e4 {[%emt 0:00:01]} c5 {[%emt 0:00:02]} 2. Nc3 {[%emt 0:00:05]} Nc6 {[%emt 0:00:09]} 3. Bb5 {[%emt 0:00:05]} Nd4 {[%emt 0:00:13]} 4. Nf3 {[%emt 0:00:09]} a6 {[%emt 0:00:48]} 5. Bc4 {[%emt 0:05:29]} Nf6 {[%emt 0:01:07]} 6. a4 {[%emt 0:07:05] B23: Closed Sicilian: Lines without g3.} e6 {[%emt 0:01:11]} 7. d3 {[%emt 0:03:52]} Qc7 {[%emt 0:08:19]} 8. h3 {[%emt 0:12:39]} b6 {[%emt 0:02:27]} 9. O-O {[%emt 0:00:14]} Bb7 {[%emt 0:01:28]} 10. Ba2 {[%emt 0:05:42] [#]} d5 $146 {[%emt 0:24:04]} ({Better is} 10... Nc6 $11) ({Predecessor:} 10... Nxf3+ 11. Qxf3 Be7 12. Bf4 d6 13. Qe2 Bc6 14. Bg3 b5 15. f4 b4 16. Nd1 d5 {0-1 (46) Tiwari,A (2274)-Maletin,P (2584) Bhubaneswar 2010}) 11. exd5 $14 {[%emt 0:03:06]} O-O-O $1 {[%emt 0:00:48]} 12. Bg5 $36 {[%emt 0:08:17][%mdl 2048] Black is under pressure.} h6 {[%emt 0:11:05]} 13. Bxf6 {[%emt 0:06:23]} (13. Bh4 $1 $14) 13... gxf6 $11 {[%emt 0:00:07]} 14. Nxd4 {[%emt 0:01:43]} cxd4 {[%emt 0:00:08]} 15. Ne2 {[%emt 0:02:53]} Rg8 $1 {[%emt 0:01:30]} 16. a5 {[%emt 0:05:58]} (16. Nxd4 Rxd5 17. Bxd5 Bxd5 $19) 16... Qe5 {[%emt 0:13:19]} (16... b5 $11) 17. Qe1 {[%emt 0:04:40]} (17. axb6 $16 {Hoping for Bc4.} Bxd5 18. Bxd5 Qxd5 19. g3) 17... Qg5 {[%emt 0:05:18]} (17... b5 $11 {keeps the balance.}) 18. Ng3 {[%emt 0:01:45]} (18. g3 $16) 18... f5 {[%emt 0:04:23]} (18... Rxd5 $11 19. Bxd5 (19. axb6 Re5 $15) 19... Qxd5) 19. dxe6 $16 {[%emt 0:04:43]} f4 {[%emt 0:00:17][%cal Bf5f4,Bf4g3][%mdl 32] [#]} 20. exf7 $1 {[%emt 0:02:08]} Rg6 {[%emt 0:05:19] [#]} 21. axb6 $1 {[%emt 0:08:13]} fxg3 $14 {[%emt 0:02:00]} 22. f4 {[%emt 0:01:48] The board is on fire.} Qc5 {[%emt 0:05:46]} (22... Qe7 $11) 23. Be6+ {[%emt 0:06:12]} (23. Bb3 $1 $16) 23... Kb8 $11 {[%emt 0:00:13]} 24. Bc4 {[%emt 0:04:58]} Qxb6 {[%emt 0:04:32]} 25. f5 {[%emt 0:01:17]} Rc6 {[%emt 0:03:05]} 26. Qxg3+ {[%emt 0:00:34]} Bd6 {[%emt 0:00:08]} 27. Qg8 {[%emt 0:00:33] White is much more active.} (27. Qf2 $1 $14) 27... Ka7 $2 {[%emt 0:01:51]} (27... Rcc8 $17 28. Qg4 Rxc4 $1 29. dxc4 d3+ 30. Kh1 dxc2) 28. Rae1 $2 {[%emt 0:01:15][%mdl 8192] [#]} (28. b3 $14) 28... Rcc8 $2 {[%emt 0:02:31]} (28... Rxc4 $1 $19 {[%mdl 512]} 29. f8=R (29. f8=Q Rxc2) 29... Rxc2 30. Rxd8 Qxd8 $3 {[%mdl 512]} 31. Qxd8 Rxg2+ 32. Kh1 Rh2+ 33. Kg1 Rg2+ 34. Kh1 Rg8+ 35. Re4 Bxe4+ 36. dxe4 Rxd8) 29. Re8 $16 {[%emt 0:00:57][%cal Ob2b4]} Bb4 {[%emt 0:01:09]} (29... h5 $16 30. Rb1 Bb4) 30. Rf2 {[%emt 0:01:56]} Qa5 {[%emt 0:01:18] [#]} 31. Qh8 $2 {[%emt 0:00:48]} ({White should try} 31. Rfe2 $1 $18) 31... Bc6 $2 {[%emt 0:00:43] Weighted Error Value: White=0.66/Black=0.58} (31... Be7 $11 32. Qg8 (32. Rxd8 Qe1+ 33. Rf1 Qe3+ 34. Rf2 Bxd8 $17) 32... Qe1+ 33. Rf1 Qe3+ 34. Rf2 Qc1+ 35. Rf1 Qe3+ 36. Rf2 Qc1+ 37. Rf1 Qe3+) 1/2-1/2